[Event "Titled Tuesday Blitz October 18 Late 2022"]
[White "Jobava, Baadur"]
[Black "Rustemov, Alexander"]
[WhiteFideId "13601520"]
[BlackFideId "4119002"]
[WhiteElo "2582"]
[BlackElo "2756"]
[Result "1-0"]
[Round "03"]
[TimeControl "180+1"]
[Date "2022.10.18"]
[WhiteClock "0:01:17"]
[BlackClock "0:00:01"]

1. e4 {[%clk 0:03:00]}  e6 {[%clk 0:02:59]} 2. d4 {[%clk 0:02:59]}  d5 {[%clk 0:03:00]} 3. exd5 {[%clk 0:03:00]}  exd5 {[%clk 0:03:00]} 4. Nf3 {[%clk 0:03:01]}  Bf5 {[%clk 0:03:00]} 5. Bd3 {[%clk 0:03:02]}  Bxd3 {[%clk 0:03:00]} 6. Qxd3 {[%clk 0:03:03]}  Nc6 {[%clk 0:03:00]} 7. O-O {[%clk 0:03:03]}  Bd6 {[%clk 0:03:01]} 8. Re1+ {[%clk 0:03:03]}  Nge7 {[%clk 0:03:01]} 9. c3 {[%clk 0:03:02]}  Qd7 {[%clk 0:03:00]} 10. Nbd2 {[%clk 0:03:02]}  O-O {[%clk 0:03:00]} 11. Nf1 {[%clk 0:03:02]}  Rae8 {[%clk 0:02:57]} 12. Ng3 {[%clk 0:03:02]}  Bxg3 {[%clk 0:02:45]} 13. hxg3 {[%clk 0:03:03]}  Ng6 {[%clk 0:02:12]} 14. Be3 {[%clk 0:03:02]}  Nce7 {[%clk 0:02:03]} 15. Re2 {[%clk 0:03:00]}  Nf5 {[%clk 0:02:02]} 16. Rae1 {[%clk 0:03:00]}  h5 {[%clk 0:01:58]} 17. Bd2 {[%clk 0:02:54]}  Rxe2 {[%clk 0:01:55]} 18. Rxe2 {[%clk 0:02:54]}  f6 {[%clk 0:01:45]} 19. b3 {[%clk 0:02:50]}  c6 {[%clk 0:01:44]} 20. c4 {[%clk 0:02:50]}  dxc4 {[%clk 0:01:31]} 21. bxc4 {[%clk 0:02:49]}  Rd8 {[%clk 0:01:30]} 22. Ba5 {[%clk 0:02:49]}  b6 {[%clk 0:01:30]} 23. Bc3 {[%clk 0:02:49]}  Nge7 {[%clk 0:01:21]} 24. Re1 {[%clk 0:02:39]}  b5 {[%clk 0:01:21]} 25. Bb4 {[%clk 0:02:17]}  bxc4 {[%clk 0:01:18]} 26. Qxc4+ {[%clk 0:02:18]}  Nd5 {[%clk 0:01:17]} 27. Bc5 {[%clk 0:02:18]}  Qb7 {[%clk 0:01:03]} 28. Qd3 {[%clk 0:02:12]}  g6 {[%clk 0:00:58]} 29. Rb1 {[%clk 0:02:03]}  Qa8 {[%clk 0:00:48]} 30. Qa6 {[%clk 0:01:56]}  Rd7 {[%clk 0:00:46]} 31. Rb3 {[%clk 0:01:49]}  Kf7 {[%clk 0:00:46]} 32. Ra3 {[%clk 0:01:42]}  Qb8 {[%clk 0:00:39]} 33. Qxc6 {[%clk 0:01:34]}  Qb7 {[%clk 0:00:04]} 34. Qxb7 {[%clk 0:01:33]}  Rxb7 {[%clk 0:00:05]} 35. Rxa7 {[%clk 0:01:33]}  Rxa7 {[%clk 0:00:05]} 36. Bxa7 {[%clk 0:01:34]}  Ke6 {[%clk 0:00:05]} 37. Bc5 {[%clk 0:01:34]}  Kd7 {[%clk 0:00:04]} 38. Kf1 {[%clk 0:01:31]}  Kc6 {[%clk 0:00:04]} 39. a3 {[%clk 0:01:31]}  Kb5 {[%clk 0:00:04]} 40. Ke2 {[%clk 0:01:28]}  Nc3+ {[%clk 0:00:01]} 41. Kd3 {[%clk 0:01:28]}  Nd1 {[%clk 0:00:01]} 42. Ke2 {[%clk 0:01:25]}  Nc3+ {[%clk 0:00:01]} 43. Kd2 {[%clk 0:01:25]}  Ne4+ {[%clk 0:00:02]} 44. Ke1 {[%clk 0:01:24]}  Nc3 {[%clk 0:00:02]} 45. Nh4 {[%clk 0:01:21]}  Nxh4 {[%clk 0:00:01]} 46. gxh4 {[%clk 0:01:22]}  f5 {[%clk 0:00:01]} 47. Kd2 {[%clk 0:01:20]}  Kc4 {[%clk 0:00:01]} 48. Ke3 {[%clk 0:01:19]}  Nd5+ {[%clk 0:00:01]} 49. Kf3 {[%clk 0:01:20]}  Kb3 {[%clk 0:00:01]} 50. g3 {[%clk 0:01:17]}  Ka4 {[%clk 0:00:01]} 51. Ke2 {[%clk 0:01:17]} 1-0


[Site "https://www.chess.com"]

[Event "Titled Tuesday Blitz October 18 Late 2022"]
[White "Kamsky, Gata"]
[Black "Amburgy, Ryan"]
[WhiteFideId "2000024"]
[BlackFideId "30924820"]
[WhiteElo "2666"]
[BlackElo "2121"]
[Result "1-0"]
[Round "03"]
[TimeControl "180+1"]
[Date "2022.10.18"]
[WhiteClock "0:00:49"]
[BlackClock "0:00:58"]

1. e4 {[%clk 0:03:00]}  e5 {[%clk 0:02:59]} 2. Nf3 {[%clk 0:02:59]}  Nc6 {[%clk 0:02:59]} 3. Bb5 {[%clk 0:02:58]}  f5 {[%clk 0:02:59]} 4. Nc3 {[%clk 0:02:56]}  fxe4 {[%clk 0:02:59]} 5. Nxe4 {[%clk 0:02:55]}  Nf6 {[%clk 0:02:59]} 6. Qe2 {[%clk 0:02:54]}  d5 {[%clk 0:03:00]} 7. Nxf6+ {[%clk 0:02:50]}  gxf6 {[%clk 0:03:00]} 8. d4 {[%clk 0:02:49]}  Bg7 {[%clk 0:03:01]} 9. dxe5 {[%clk 0:02:46]}  O-O {[%clk 0:03:02]} 10. e6 {[%clk 0:02:25]}  Re8 {[%clk 0:03:01]} 11. O-O {[%clk 0:02:23]}  Bxe6 {[%clk 0:02:58]} 12. Bxc6 {[%clk 0:01:54]}  bxc6 {[%clk 0:02:57]} 13. Qd3 {[%clk 0:01:50]}  Qd7 {[%clk 0:02:51]} 14. Be3 {[%clk 0:01:47]}  Bg4 {[%clk 0:02:37]} 15. Bc5 {[%clk 0:01:38]}  Re4 {[%clk 0:02:32]} 16. Nd4 {[%clk 0:01:35]}  Bh5 {[%clk 0:02:24]} 17. f3 {[%clk 0:01:35]}  Re5 {[%clk 0:02:24]} 18. Qa6 {[%clk 0:01:30]}  Bf8 {[%clk 0:02:16]} 19. Bxf8 {[%clk 0:01:27]}  Kxf8 {[%clk 0:02:16]} 20. Qxc6 {[%clk 0:01:24]}  Qxc6 {[%clk 0:02:02]} 21. Nxc6 {[%clk 0:01:19]}  Re2 {[%clk 0:02:03]} 22. Nd4 {[%clk 0:01:18]}  Rd2 {[%clk 0:02:01]} 23. Rad1 {[%clk 0:01:17]}  Rxd1 {[%clk 0:02:00]} 24. Rxd1 {[%clk 0:01:17]}  Ke7 {[%clk 0:01:55]} 25. Re1+ {[%clk 0:01:10]}  Kd7 {[%clk 0:01:55]} 26. b4 {[%clk 0:01:03]}  Bf7 {[%clk 0:01:27]} 27. a3 {[%clk 0:01:01]}  c6 {[%clk 0:01:26]} 28. Kf2 {[%clk 0:01:00]}  a5 {[%clk 0:01:26]} 29. g4 {[%clk 0:00:58]}  axb4 {[%clk 0:01:24]} 30. axb4 {[%clk 0:00:58]}  Ra4 {[%clk 0:01:25]} 31. c3 {[%clk 0:00:58]}  Ra3 {[%clk 0:01:24]} 32. Re3 {[%clk 0:00:58]}  Ra2+ {[%clk 0:01:24]} 33. Kg3 {[%clk 0:00:58]}  Ra1 {[%clk 0:01:15]} 34. h4 {[%clk 0:00:57]}  h5 {[%clk 0:01:11]} 35. gxh5 {[%clk 0:00:56]}  Bxh5 {[%clk 0:01:10]} 36. Re6 {[%clk 0:00:56]}  Rc1 {[%clk 0:01:09]} 37. Rxc6 {[%clk 0:00:55]}  f5 {[%clk 0:01:07]} 38. Kf4 {[%clk 0:00:55]}  Rh1 {[%clk 0:01:06]} 39. Rh6 {[%clk 0:00:54]}  Bf7 {[%clk 0:01:01]} 40. Kxf5 {[%clk 0:00:52]}  Ke7 {[%clk 0:01:02]} 41. Nc6+ {[%clk 0:00:50]}  Ke8 {[%clk 0:00:58]} 42. Rh8+ {[%clk 0:00:49]}  Kd7 {[%clk 0:00:58]} 43. Ne5+ {[%clk 0:00:49]} 1-0


[Site "https://www.chess.com"]

[Event "Titled Tuesday Blitz October 18 Late 2022"]
[White "Kobla, Vishal"]
[Black "Marcolino, Daniel Mattos"]
[WhiteFideId "2078457"]
[BlackFideId "2106841"]
[WhiteElo "1972"]
[BlackElo "2050"]
[Result "1-0"]
[Round "03"]
[TimeControl "180+1"]
[Date "2022.10.19"]
[WhiteClock "0:01:25"]
[BlackClock "0:01:49"]

1. e4 {[%clk 0:02:57]}  c6 {[%clk 0:02:59]} 2. d4 {[%clk 0:02:57]}  d5 {[%clk 0:03:00]} 3. Nc3 {[%clk 0:02:57]}  dxe4 {[%clk 0:03:00]} 4. Nxe4 {[%clk 0:02:58]}  Nd7 {[%clk 0:03:00]} 5. Bc4 {[%clk 0:02:56]}  Ngf6 {[%clk 0:03:00]} 6. Ng5 {[%clk 0:02:57]}  e6 {[%clk 0:03:01]} 7. Qe2 {[%clk 0:02:57]}  Nb6 {[%clk 0:03:00]} 8. Bb3 {[%clk 0:02:57]}  h6 {[%clk 0:02:57]} 9. N5f3 {[%clk 0:02:50]}  c5 {[%clk 0:02:57]} 10. dxc5 {[%clk 0:02:47]}  Bxc5 {[%clk 0:02:57]} 11. Qb5+ {[%clk 0:02:36]}  Nbd7 {[%clk 0:02:54]} 12. Bf4 {[%clk 0:02:25]}  O-O {[%clk 0:02:52]} 13. Ne2 {[%clk 0:02:24]}  a6 {[%clk 0:02:38]} 14. Qd3 {[%clk 0:02:22]}  Qe7 {[%clk 0:02:37]} 15. O-O {[%clk 0:02:21]}  Ba7 {[%clk 0:02:22]} 16. Bd6 {[%clk 0:02:17]}  Qe8 {[%clk 0:02:20]} 17. Bxf8 {[%clk 0:02:16]}  Qxf8 {[%clk 0:02:21]} 18. Rad1 {[%clk 0:02:15]}  b5 {[%clk 0:02:20]} 19. Ng3 {[%clk 0:02:10]}  Nc5 {[%clk 0:02:19]} 20. Qd8 {[%clk 0:02:04]}  Bb7 {[%clk 0:02:18]} 21. Qxf8+ {[%clk 0:02:02]}  Kxf8 {[%clk 0:02:19]} 22. Ne5 {[%clk 0:02:01]}  a5 {[%clk 0:02:06]} 23. c3 {[%clk 0:01:47]}  Nxb3 {[%clk 0:02:03]} 24. axb3 {[%clk 0:01:47]}  Bd5 {[%clk 0:02:01]} 25. c4 {[%clk 0:01:45]}  bxc4 {[%clk 0:02:00]} 26. bxc4 {[%clk 0:01:46]}  Bb7 {[%clk 0:01:58]} 27. Nd7+ {[%clk 0:01:42]}  Ke7 {[%clk 0:01:57]} 28. Nxf6 {[%clk 0:01:39]}  gxf6 {[%clk 0:01:58]} 29. Rfe1 {[%clk 0:01:37]}  Ba6 {[%clk 0:01:59]} 30. b3 {[%clk 0:01:37]}  Rb8 {[%clk 0:01:57]} 31. Rd3 {[%clk 0:01:31]}  a4 {[%clk 0:01:54]} 32. bxa4 {[%clk 0:01:31]}  Bxc4 {[%clk 0:01:54]} 33. Rc3 {[%clk 0:01:31]}  Rb4 {[%clk 0:01:49]} 34. Rec1 {[%clk 0:01:25]} 1-0


[Site "https://www.chess.com"]

[Event "Titled Tuesday Blitz October 18 Late 2022"]
[White "Korchmar, Vasiliy"]
[Black "Galaktionov, Artem"]
[WhiteFideId "24131750"]
[BlackFideId "24175471"]
[WhiteElo "2370"]
[BlackElo "2278"]
[Result "0-1"]
[Round "03"]
[TimeControl "180+1"]
[Date "2022.10.18"]
[WhiteClock "0:00:01"]
[BlackClock "0:01:25"]

1. e4 {[%clk 0:03:00]}  c6 {[%clk 0:02:59]} 2. d4 {[%clk 0:03:00]}  d6 {[%clk 0:03:00]} 3. Nc3 {[%clk 0:03:00]}  Nd7 {[%clk 0:03:00]} 4. Nf3 {[%clk 0:02:54]}  g6 {[%clk 0:03:00]} 5. Be2 {[%clk 0:02:51]}  Bg7 {[%clk 0:03:01]} 6. O-O {[%clk 0:02:51]}  e5 {[%clk 0:03:01]} 7. Be3 {[%clk 0:02:41]}  Ngf6 {[%clk 0:03:01]} 8. h3 {[%clk 0:02:40]}  O-O {[%clk 0:03:01]} 9. Qd2 {[%clk 0:02:35]}  Qe7 {[%clk 0:03:01]} 10. d5 {[%clk 0:02:27]}  c5 {[%clk 0:03:00]} 11. a4 {[%clk 0:02:14]}  Ne8 {[%clk 0:03:00]} 12. g4 {[%clk 0:01:45]}  f5 {[%clk 0:02:56]} 13. gxf5 {[%clk 0:01:45]}  gxf5 {[%clk 0:02:57]} 14. exf5 {[%clk 0:01:46]}  Rxf5 {[%clk 0:02:52]} 15. Ng5 {[%clk 0:01:30]}  Nf8 {[%clk 0:02:49]} 16. Bd3 {[%clk 0:01:18]}  Rf6 {[%clk 0:02:47]} 17. Kh2 {[%clk 0:01:08]}  Qd7 {[%clk 0:02:48]} 18. Rg1 {[%clk 0:01:00]}  h6 {[%clk 0:02:44]} 19. Ne6 {[%clk 0:00:58]}  Nxe6 {[%clk 0:02:43]} 20. dxe6 {[%clk 0:00:59]}  Qxe6 {[%clk 0:02:43]} 21. Rg3 {[%clk 0:00:59]}  Bd7 {[%clk 0:02:32]} 22. Nd5 {[%clk 0:00:50]}  Rf7 {[%clk 0:02:30]} 23. Bxh6 {[%clk 0:00:42]}  Kf8 {[%clk 0:02:27]} 24. Bxg7+ {[%clk 0:00:31]}  Nxg7 {[%clk 0:02:26]} 25. Nc7 {[%clk 0:00:29]}  Qf6 {[%clk 0:02:09]} 26. Nxa8 {[%clk 0:00:29]}  d5 {[%clk 0:02:08]} 27. Rag1 {[%clk 0:00:20]}  e4 {[%clk 0:02:07]} 28. Bb5 {[%clk 0:00:18]}  Be6 {[%clk 0:02:05]} 29. Qe3 {[%clk 0:00:08]}  b6 {[%clk 0:02:01]} 30. Qg5 {[%clk 0:00:07]}  Qxg5 {[%clk 0:01:29]} 31. Rxg5 {[%clk 0:00:08]}  Rxf2+ {[%clk 0:01:28]} 32. R5g2 {[%clk 0:00:07]}  Rf7 {[%clk 0:01:29]} 33. Rf1 {[%clk 0:00:07]}  Nf5 {[%clk 0:01:29]} 34. a5 {[%clk 0:00:03]}  bxa5 {[%clk 0:01:28]} 35. Rff2 {[%clk 0:00:01]}  d4 {[%clk 0:01:27]} 36. Rf1 {[%clk 0:00:01]}  Ke7 {[%clk 0:01:25]} 0-1


[Site "https://www.chess.com"]

[Event "Titled Tuesday Blitz October 18 Late 2022"]
[White "Kovacevic, Radmila"]
[Black "Shuvalov, Evgenij"]
[WhiteFideId "933171"]
[BlackFideId "4187237"]
[WhiteElo "2208"]
[BlackElo "2049"]
[Result "0-1"]
[Round "03"]
[TimeControl "180+1"]
[Date "2022.10.19"]
[WhiteClock "0:00:04"]
[BlackClock "0:00:18"]

1. e4 {[%clk 0:03:00]}  e6 {[%clk 0:02:58]} 2. d4 {[%clk 0:03:00]}  d5 {[%clk 0:02:58]} 3. e5 {[%clk 0:02:59]}  c5 {[%clk 0:02:58]} 4. c3 {[%clk 0:02:59]}  Nc6 {[%clk 0:02:59]} 5. Be3 {[%clk 0:02:56]}  Qb6 {[%clk 0:02:58]} 6. b3 {[%clk 0:02:49]}  cxd4 {[%clk 0:02:53]} 7. Bxd4 {[%clk 0:02:48]}  Nxd4 {[%clk 0:02:52]} 8. Qxd4 {[%clk 0:02:49]}  Bc5 {[%clk 0:02:49]} 9. Qh4 {[%clk 0:02:43]}  Ne7 {[%clk 0:02:47]} 10. b4 {[%clk 0:02:39]}  Nf5 {[%clk 0:02:43]} 11. Qf4 {[%clk 0:02:34]}  a5 {[%clk 0:02:31]} 12. bxc5 {[%clk 0:02:24]}  Qb2 {[%clk 0:02:31]} 13. Qa4+ {[%clk 0:02:23]}  Bd7 {[%clk 0:02:29]} 14. Qb3 {[%clk 0:02:19]}  Qxa1 {[%clk 0:02:28]} 15. Bd3 {[%clk 0:02:14]}  a4 {[%clk 0:02:26]} 16. Qxb7 {[%clk 0:02:13]}  Rc8 {[%clk 0:02:07]} 17. a3 {[%clk 0:02:04]}  d4 {[%clk 0:01:48]} 18. Ne2 {[%clk 0:02:00]}  dxc3 {[%clk 0:01:46]} 19. Nxc3 {[%clk 0:01:56]}  Ne7 {[%clk 0:01:34]} 20. O-O {[%clk 0:01:52]}  Bc6 {[%clk 0:01:34]} 21. Bb5 {[%clk 0:01:46]}  Bxb5 {[%clk 0:01:27]} 22. Nxb5 {[%clk 0:01:36]}  O-O {[%clk 0:01:27]} 23. N1c3 {[%clk 0:01:36]}  Qb2 {[%clk 0:01:24]} 24. Qxe7 {[%clk 0:01:27]}  Rfe8 {[%clk 0:01:21]} 25. Qg5 {[%clk 0:01:22]}  Rxc5 {[%clk 0:01:17]} 26. Nd6 {[%clk 0:01:02]}  Rf8 {[%clk 0:01:11]} 27. Nde4 {[%clk 0:00:52]}  Rxc3 {[%clk 0:01:06]} 28. Nf6+ {[%clk 0:00:46]}  Kh8 {[%clk 0:01:07]} 29. Qh4 {[%clk 0:00:38]}  h6 {[%clk 0:01:05]} 30. Nd7 {[%clk 0:00:30]}  Rfc8 {[%clk 0:01:01]} 31. Qxa4 {[%clk 0:00:20]}  Rc1 {[%clk 0:00:59]} 32. g3 {[%clk 0:00:19]}  Qe2 {[%clk 0:00:55]} 33. Rxc1 {[%clk 0:00:19]}  Rxc1+ {[%clk 0:00:56]} 34. Kg2 {[%clk 0:00:19]}  Qf1+ {[%clk 0:00:56]} 35. Kf3 {[%clk 0:00:19]}  Rc3+ {[%clk 0:00:57]} 36. Kg4 {[%clk 0:00:18]}  Rc4+ {[%clk 0:00:55]} 37. Qxc4 {[%clk 0:00:17]}  Qxc4+ {[%clk 0:00:56]} 38. f4 {[%clk 0:00:17]}  Qa4 {[%clk 0:00:53]} 39. Nc5 {[%clk 0:00:16]}  Qxa3 {[%clk 0:00:53]} 40. Ne4 {[%clk 0:00:16]}  Qe3 {[%clk 0:00:50]} 41. Nd6 {[%clk 0:00:15]}  Qe2+ {[%clk 0:00:47]} 42. Kh3 {[%clk 0:00:15]}  h5 {[%clk 0:00:47]} 43. Nxf7+ {[%clk 0:00:14]}  Kg8 {[%clk 0:00:46]} 44. Ng5 {[%clk 0:00:15]}  Qg4+ {[%clk 0:00:46]} 45. Kg2 {[%clk 0:00:15]}  h4 {[%clk 0:00:47]} 46. Kf2 {[%clk 0:00:14]}  hxg3+ {[%clk 0:00:45]} 47. hxg3 {[%clk 0:00:15]}  Kf8 {[%clk 0:00:43]} 48. Kg2 {[%clk 0:00:15]}  Ke7 {[%clk 0:00:43]} 49. Kf2 {[%clk 0:00:15]}  Qh5 {[%clk 0:00:42]} 50. Kg2 {[%clk 0:00:13]}  Qe2+ {[%clk 0:00:42]} 51. Kh3 {[%clk 0:00:13]}  Qf2 {[%clk 0:00:39]} 52. Ne4 {[%clk 0:00:10]}  Qg1 {[%clk 0:00:35]} 53. Nd6 {[%clk 0:00:09]}  g6 {[%clk 0:00:34]} 54. Kg4 {[%clk 0:00:09]}  Qh1 {[%clk 0:00:32]} 55. f5 {[%clk 0:00:04]}  gxf5+ {[%clk 0:00:27]} 56. Kf4 {[%clk 0:00:04]}  Qh5 {[%clk 0:00:26]} 57. Ke3 {[%clk 0:00:01]}  Qg4 {[%clk 0:00:23]} 58. Kf2 {[%clk 0:00:01]}  Qd4+ {[%clk 0:00:21]} 59. Kg2 {[%clk 0:00:02]}  Qxe5 {[%clk 0:00:21]} 60. Nc8+ {[%clk 0:00:01]}  Kf6 {[%clk 0:00:19]} 61. Nb6 {[%clk 0:00:02]}  Qb2+ {[%clk 0:00:18]} 62. Kh3 {[%clk 0:00:03]}  Qxb6 {[%clk 0:00:18]} 63. Kh4 {[%clk 0:00:04]}  Qf2 {[%clk 0:00:18]} 64. Kh5 {[%clk 0:00:04]}  Qh2# {[%clk 0:00:18]} 0-1


[Site "https://www.chess.com"]

[Event "Titled Tuesday Blitz October 18 Late 2022"]
[White "Krishnan, Varun"]
[Black "Alexikov, Alexander"]
[WhiteFideId "5054508"]
[BlackFideId "14103958"]
[WhiteElo "2548"]
[BlackElo "2222"]
[Result "1-0"]
[Round "03"]
[TimeControl "180+1"]
[Date "2022.10.19"]
[WhiteClock "0:02:47"]
[BlackClock "0:02:22"]

1. d4 {[%clk 0:03:00]}  Nf6 {[%clk 0:02:59]} 2. c4 {[%clk 0:03:00]}  g6 {[%clk 0:02:59]} 3. Nf3 {[%clk 0:02:58]}  Bg7 {[%clk 0:03:00]} 4. g3 {[%clk 0:02:58]}  d6 {[%clk 0:02:59]} 5. Bg2 {[%clk 0:02:59]}  O-O {[%clk 0:03:00]} 6. O-O {[%clk 0:03:00]}  c6 {[%clk 0:02:59]} 7. b3 {[%clk 0:03:00]}  Bf5 {[%clk 0:02:56]} 8. Bb2 {[%clk 0:03:00]}  Nbd7 {[%clk 0:02:53]} 9. Nbd2 {[%clk 0:03:01]}  Ne4 {[%clk 0:02:52]} 10. Nh4 {[%clk 0:02:59]}  Nxd2 {[%clk 0:02:51]} 11. Qxd2 {[%clk 0:02:59]}  Nf6 {[%clk 0:02:35]} 12. Nxf5 {[%clk 0:02:55]}  gxf5 {[%clk 0:02:35]} 13. Qg5 {[%clk 0:02:49]}  e6 {[%clk 0:02:32]} 14. d5 {[%clk 0:02:48]}  Ne4 {[%clk 0:02:22]} 15. Qxg7# {[%clk 0:02:47]} 1-0


[Site "https://www.chess.com"]

[Event "Titled Tuesday Blitz October 18 Late 2022"]
[White "Licznerski, Lukasz"]
[Black "Winterberg, Lukas"]
[WhiteFideId "1179250"]
[BlackFideId "24622702"]
[WhiteElo "2904"]
[BlackElo "2505"]
[Result "1-0"]
[Round "03"]
[TimeControl "180+1"]
[Date "2022.10.19"]
[WhiteClock "0:00:11"]
[BlackClock "0:00:03"]

1. e4 {[%clk 0:03:00]}  e6 {[%clk 0:02:56]} 2. d4 {[%clk 0:03:00]}  d5 {[%clk 0:02:56]} 3. Nd2 {[%clk 0:03:01]}  c5 {[%clk 0:02:56]} 4. Ngf3 {[%clk 0:03:00]}  cxd4 {[%clk 0:02:55]} 5. exd5 {[%clk 0:03:00]}  Qxd5 {[%clk 0:02:54]} 6. Bc4 {[%clk 0:03:01]}  Qd7 {[%clk 0:02:54]} 7. O-O {[%clk 0:03:01]}  Nc6 {[%clk 0:02:55]} 8. Nb3 {[%clk 0:03:02]}  a6 {[%clk 0:02:55]} 9. Nbxd4 {[%clk 0:03:02]}  Nxd4 {[%clk 0:02:56]} 10. Qxd4 {[%clk 0:03:01]}  Qxd4 {[%clk 0:02:55]} 11. Nxd4 {[%clk 0:03:02]}  Nf6 {[%clk 0:02:55]} 12. Be2 {[%clk 0:03:02]}  Bd6 {[%clk 0:02:51]} 13. Bf3 {[%clk 0:02:56]}  O-O {[%clk 0:02:50]} 14. Rd1 {[%clk 0:02:47]}  Bc7 {[%clk 0:02:44]} 15. Be3 {[%clk 0:02:36]}  e5 {[%clk 0:02:17]} 16. Nb3 {[%clk 0:02:35]}  e4 {[%clk 0:02:12]} 17. Be2 {[%clk 0:02:35]}  Bg4 {[%clk 0:02:00]} 18. Kf1 {[%clk 0:02:17]}  Rfd8 {[%clk 0:01:48]} 19. Bg5 {[%clk 0:02:04]}  Bxe2+ {[%clk 0:01:32]} 20. Kxe2 {[%clk 0:02:04]}  Be5 {[%clk 0:01:32]} 21. c3 {[%clk 0:01:34]}  h6 {[%clk 0:01:20]} 22. Bxf6 {[%clk 0:01:29]}  Bxf6 {[%clk 0:01:21]} 23. Nc5 {[%clk 0:01:26]}  Re8 {[%clk 0:01:11]} 24. Rd5 {[%clk 0:00:59]}  b5 {[%clk 0:00:37]} 25. a3 {[%clk 0:00:50]}  a5 {[%clk 0:00:34]} 26. Nd7 {[%clk 0:00:50]}  b4 {[%clk 0:00:31]} 27. Nxf6+ {[%clk 0:00:49]}  gxf6 {[%clk 0:00:31]} 28. axb4 {[%clk 0:00:50]}  axb4 {[%clk 0:00:32]} 29. Rxa8 {[%clk 0:00:49]}  Rxa8 {[%clk 0:00:33]} 30. cxb4 {[%clk 0:00:38]}  Ra2 {[%clk 0:00:32]} 31. Rd2 {[%clk 0:00:38]}  Ra4 {[%clk 0:00:32]} 32. Rd4 {[%clk 0:00:38]}  Ra2 {[%clk 0:00:31]} 33. Rd2 {[%clk 0:00:38]}  Ra4 {[%clk 0:00:29]} 34. Rd4 {[%clk 0:00:38]}  Ra2 {[%clk 0:00:26]} 35. Rxe4 {[%clk 0:00:38]}  Rxb2+ {[%clk 0:00:27]} 36. Kf3 {[%clk 0:00:31]}  Kg7 {[%clk 0:00:27]} 37. h4 {[%clk 0:00:26]}  f5 {[%clk 0:00:26]} 38. Rf4 {[%clk 0:00:25]}  Kg6 {[%clk 0:00:25]} 39. Ke3 {[%clk 0:00:22]}  Rb3+ {[%clk 0:00:13]} 40. Kd2 {[%clk 0:00:21]}  h5 {[%clk 0:00:08]} 41. Kc2 {[%clk 0:00:20]}  Ra3 {[%clk 0:00:08]} 42. Kb2 {[%clk 0:00:18]}  Rd3 {[%clk 0:00:08]} 43. Kc2 {[%clk 0:00:16]}  Ra3 {[%clk 0:00:07]} 44. b5 {[%clk 0:00:16]}  Kf6 {[%clk 0:00:03]} 45. Rb4 {[%clk 0:00:11]} 1-0


[Site "https://www.chess.com"]

[Event "Titled Tuesday Blitz October 18 Late 2022"]
[White "Luxama, Jacques Muller"]
[Black "Becerra, Juan David"]
[WhiteFideId "11900113"]
[BlackFideId "4404998"]
[WhiteElo "1931"]
[BlackElo "2278"]
[Result "0-1"]
[Round "03"]
[TimeControl "180+1"]
[Date "2022.10.19"]
[WhiteClock "0:01:01"]
[BlackClock "0:01:47"]

1. e4 {[%clk 0:03:00]}  c5 {[%clk 0:03:00]} 2. Nf3 {[%clk 0:02:59]}  d6 {[%clk 0:02:59]} 3. d4 {[%clk 0:02:59]}  cxd4 {[%clk 0:03:00]} 4. Nxd4 {[%clk 0:02:59]}  Nf6 {[%clk 0:03:01]} 5. Nc3 {[%clk 0:02:58]}  a6 {[%clk 0:03:01]} 6. Bg5 {[%clk 0:02:56]}  e6 {[%clk 0:03:00]} 7. Qe2 {[%clk 0:02:52]}  Be7 {[%clk 0:02:59]} 8. O-O-O {[%clk 0:02:52]}  Qc7 {[%clk 0:02:59]} 9. f4 {[%clk 0:02:51]}  Nbd7 {[%clk 0:02:59]} 10. g4 {[%clk 0:02:44]}  b5 {[%clk 0:02:56]} 11. Bxf6 {[%clk 0:02:43]}  gxf6 {[%clk 0:02:55]} 12. Bg2 {[%clk 0:02:40]}  Bb7 {[%clk 0:02:56]} 13. a3 {[%clk 0:02:33]}  Rc8 {[%clk 0:02:56]} 14. Kb1 {[%clk 0:02:30]}  Nb6 {[%clk 0:02:53]} 15. Rhe1 {[%clk 0:02:17]}  Nc4 {[%clk 0:02:53]} 16. Nd5 {[%clk 0:02:03]}  Qc5 {[%clk 0:02:24]} 17. Nxe7 {[%clk 0:01:49]}  Kxe7 {[%clk 0:02:23]} 18. Nf5+ {[%clk 0:01:41]}  Kf8 {[%clk 0:02:14]} 19. g5 {[%clk 0:01:22]}  fxg5 {[%clk 0:02:05]} 20. fxg5 {[%clk 0:01:13]}  exf5 {[%clk 0:02:04]} 21. exf5 {[%clk 0:01:11]}  Bxg2 {[%clk 0:01:59]} 22. Qe7+ {[%clk 0:01:09]}  Kg8 {[%clk 0:01:58]} 23. g6 {[%clk 0:01:08]}  hxg6 {[%clk 0:01:54]} 24. fxg6 {[%clk 0:01:06]}  Rf8 {[%clk 0:01:47]} 25. gxf7+ {[%clk 0:01:03]}  Rxf7 {[%clk 0:01:48]} 26. Qg5+ {[%clk 0:01:01]}  Qxg5 {[%clk 0:01:47]} 0-1


[Site "https://www.chess.com"]

[Event "Titled Tuesday Blitz October 18 Late 2022"]
[White "Maksimovic, Bojan"]
[Black "Priasmoro, Novendra"]
[WhiteFideId "14408120"]
[BlackFideId "7105029"]
[WhiteElo "2447"]
[BlackElo "2412"]
[Result "0-1"]
[Round "03"]
[TimeControl "180+1"]
[Date "2022.10.18"]
[WhiteClock "0:00:47"]
[BlackClock "0:01:33"]

1. e4 {[%clk 0:03:00]}  c5 {[%clk 0:02:58]} 2. Nf3 {[%clk 0:03:01]}  Nc6 {[%clk 0:02:59]} 3. d4 {[%clk 0:03:01]}  cxd4 {[%clk 0:03:00]} 4. Nxd4 {[%clk 0:03:02]}  Nf6 {[%clk 0:03:00]} 5. Nc3 {[%clk 0:03:03]}  d6 {[%clk 0:03:01]} 6. Bg5 {[%clk 0:03:02]}  e6 {[%clk 0:03:01]} 7. Qd2 {[%clk 0:03:02]}  a6 {[%clk 0:03:01]} 8. O-O-O {[%clk 0:03:02]}  Bd7 {[%clk 0:03:02]} 9. f3 {[%clk 0:03:02]}  h6 {[%clk 0:02:56]} 10. Be3 {[%clk 0:03:02]}  b5 {[%clk 0:02:56]} 11. Nxc6 {[%clk 0:03:00]}  Bxc6 {[%clk 0:02:57]} 12. Ne2 {[%clk 0:03:00]}  Qc7 {[%clk 0:02:50]} 13. Kb1 {[%clk 0:03:00]}  Be7 {[%clk 0:02:47]} 14. g4 {[%clk 0:02:58]}  Nd7 {[%clk 0:02:45]} 15. Nd4 {[%clk 0:02:56]}  Bb7 {[%clk 0:02:41]} 16. Bxb5 {[%clk 0:02:49]}  axb5 {[%clk 0:02:42]} 17. Nxb5 {[%clk 0:02:50]}  Qc4 {[%clk 0:02:38]} 18. Nc3 {[%clk 0:02:07]}  Ne5 {[%clk 0:02:25]} 19. b3 {[%clk 0:02:05]}  Qb4 {[%clk 0:02:18]} 20. Qd4 {[%clk 0:01:50]}  Qxd4 {[%clk 0:02:14]} 21. Bxd4 {[%clk 0:01:51]}  Nxf3 {[%clk 0:02:12]} 22. Bxg7 {[%clk 0:01:44]}  Rh7 {[%clk 0:02:07]} 23. Rhf1 {[%clk 0:01:45]}  Nxh2 {[%clk 0:02:06]} 24. Rh1 {[%clk 0:01:41]}  Nxg4 {[%clk 0:01:58]} 25. Bd4 {[%clk 0:01:41]}  Bf6 {[%clk 0:01:55]} 26. Bxf6 {[%clk 0:01:39]}  Nxf6 {[%clk 0:01:56]} 27. Rxd6 {[%clk 0:01:36]}  Nxe4 {[%clk 0:01:55]} 28. Nxe4 {[%clk 0:01:37]}  Bxe4 {[%clk 0:01:56]} 29. Re1 {[%clk 0:01:37]}  Bf5 {[%clk 0:01:53]} 30. a4 {[%clk 0:01:27]}  Rg7 {[%clk 0:01:53]} 31. Rd5 {[%clk 0:01:23]}  Kf8 {[%clk 0:01:51]} 32. Rd2 {[%clk 0:01:23]}  h5 {[%clk 0:01:49]} 33. Rh1 {[%clk 0:01:23]}  Rg5 {[%clk 0:01:46]} 34. Rdh2 {[%clk 0:01:22]}  Bg6 {[%clk 0:01:45]} 35. Kb2 {[%clk 0:01:22]}  e5 {[%clk 0:01:40]} 36. c4 {[%clk 0:01:22]}  e4 {[%clk 0:01:40]} 37. Rh3 {[%clk 0:01:19]}  f5 {[%clk 0:01:39]} 38. Rf1 {[%clk 0:01:19]}  Ke7 {[%clk 0:01:39]} 39. Kc3 {[%clk 0:01:19]}  Ke6 {[%clk 0:01:36]} 40. Kb4 {[%clk 0:00:48]}  Ke5 {[%clk 0:01:36]} 41. Rd1 {[%clk 0:00:49]}  Bf7 {[%clk 0:01:34]} 42. Rd7 {[%clk 0:00:48]}  Be6 {[%clk 0:01:33]} 43. Rh7 {[%clk 0:00:46]}  f4 {[%clk 0:01:32]} 44. R3xh5 {[%clk 0:00:46]}  Rxh5 {[%clk 0:01:33]} 45. Rh6 {[%clk 0:00:47]} 0-1


[Site "https://www.chess.com"]